[Event "Titled Tuesday Blitz February 15 Late 2022"]
[White "Jakubowski, Krzysztof"]
[Black "Svane, Rasmus"]
[WhiteFideId "1112848"]
[BlackFideId "4657101"]
[WhiteElo "2365"]
[BlackElo "2645"]
[Result "0-1"]
[Round "04"]
[TimeControl "180+1"]
[Date "2022.02.15"]
[WhiteClock "0:00:13"]
[BlackClock "0:00:09"]

1. e4 {[%clk 0:03:00]}  c6 {[%clk 0:02:59]} 2. Nf3 {[%clk 0:02:57]}  d5 {[%clk 0:03:00]} 3. d3 {[%clk 0:02:57]}  Bg4 {[%clk 0:02:59]} 4. h3 {[%clk 0:02:55]}  Bh5 {[%clk 0:03:00]} 5. Qe2 {[%clk 0:02:52]}  e6 {[%clk 0:03:00]} 6. g4 {[%clk 0:02:51]}  Bg6 {[%clk 0:03:00]} 7. h4 {[%clk 0:02:49]}  h6 {[%clk 0:02:55]} 8. Ne5 {[%clk 0:02:38]}  Bh7 {[%clk 0:02:53]} 9. g5 {[%clk 0:02:37]}  Nd7 {[%clk 0:02:36]} 10. Bf4 {[%clk 0:02:17]}  dxe4 {[%clk 0:02:30]} 11. dxe4 {[%clk 0:02:12]}  Qa5+ {[%clk 0:02:18]} 12. Qd2 {[%clk 0:02:08]}  Bb4 {[%clk 0:02:17]} 13. c3 {[%clk 0:02:07]}  Nxe5 {[%clk 0:02:16]} 14. cxb4 {[%clk 0:01:58]}  Nf3+ {[%clk 0:02:13]} 15. Ke2 {[%clk 0:01:55]}  Nxd2 {[%clk 0:02:13]} 16. bxa5 {[%clk 0:01:54]}  Nxf1 {[%clk 0:02:09]} 17. gxh6 {[%clk 0:01:48]}  Nxh6 {[%clk 0:01:51]} 18. Bxh6 {[%clk 0:01:43]}  gxh6 {[%clk 0:01:50]} 19. Rxf1 {[%clk 0:01:41]}  Bxe4 {[%clk 0:01:51]} 20. Nc3 {[%clk 0:01:41]}  Bd5 {[%clk 0:01:45]} 21. Rg1 {[%clk 0:01:40]}  Ke7 {[%clk 0:01:45]} 22. Rg3 {[%clk 0:01:37]}  Bc4+ {[%clk 0:01:34]} 23. Kd2 {[%clk 0:01:33]}  Rad8+ {[%clk 0:01:34]} 24. Kc2 {[%clk 0:01:33]}  Rhg8 {[%clk 0:01:32]} 25. Rag1 {[%clk 0:01:32]}  Bd3+ {[%clk 0:01:31]} 26. Kb3 {[%clk 0:01:31]}  Rxg3 {[%clk 0:01:30]} 27. Rxg3 {[%clk 0:01:32]}  Bf5 {[%clk 0:01:28]} 28. h5 {[%clk 0:01:24]}  Rd2 {[%clk 0:01:26]} 29. Rg8 {[%clk 0:01:23]}  b6 {[%clk 0:00:58]} 30. Ra8 {[%clk 0:01:13]}  Rd7 {[%clk 0:00:43]} 31. axb6 {[%clk 0:01:01]}  axb6 {[%clk 0:00:43]} 32. Na4 {[%clk 0:01:01]}  Rd3+ {[%clk 0:00:36]} 33. Kb4 {[%clk 0:00:56]}  b5 {[%clk 0:00:33]} 34. Nc5 {[%clk 0:00:55]}  Rd2 {[%clk 0:00:33]} 35. b3 {[%clk 0:00:50]}  Rxf2 {[%clk 0:00:31]} 36. Ra7+ {[%clk 0:00:47]}  Kf6 {[%clk 0:00:31]} 37. a4 {[%clk 0:00:46]}  bxa4 {[%clk 0:00:31]} 38. bxa4 {[%clk 0:00:47]}  Rf4+ {[%clk 0:00:27]} 39. Kc3 {[%clk 0:00:45]}  Rf3+ {[%clk 0:00:18]} 40. Kb4 {[%clk 0:00:44]}  Rf4+ {[%clk 0:00:16]} 41. Kc3 {[%clk 0:00:43]}  Bg4 {[%clk 0:00:16]} 42. a5 {[%clk 0:00:37]}  Bxh5 {[%clk 0:00:16]} 43. Nd3 {[%clk 0:00:31]}  Ra4 {[%clk 0:00:13]} 44. Kb3 {[%clk 0:00:31]}  Ra1 {[%clk 0:00:13]} 45. Kb2 {[%clk 0:00:31]}  Rd1 {[%clk 0:00:11]} 46. Nf4 {[%clk 0:00:30]}  Bg4 {[%clk 0:00:07]} 47. a6 {[%clk 0:00:29]}  Rd4 {[%clk 0:00:07]} 48. Ng2 {[%clk 0:00:21]}  Rd2+ {[%clk 0:00:08]} 49. Kb3 {[%clk 0:00:19]}  Rxg2 {[%clk 0:00:09]} 50. Rd7 {[%clk 0:00:18]}  Bf3 {[%clk 0:00:08]} 51. Rd3 {[%clk 0:00:17]}  Bd5+ {[%clk 0:00:08]} 52. Rxd5 {[%clk 0:00:13]}  cxd5 {[%clk 0:00:09]} 53. a7 {[%clk 0:00:13]}  Rg8 {[%clk 0:00:09]} 0-1


[Site "https://www.chess.com"]

[Event "Titled Tuesday Blitz February 15 Late 2022"]
[White "Jaracz, Pawel"]
[Black "Karttunen, Mika"]
[WhiteFideId "1102222"]
[BlackFideId "502081"]
[WhiteElo "2779"]
[BlackElo "2569"]
[Result "1-0"]
[Round "04"]
[TimeControl "180+1"]
[Date "2022.02.16"]
[WhiteClock "0:01:06"]
[BlackClock "0:00:07"]

1. d4 {[%clk 0:02:58]}  Nf6 {[%clk 0:02:56]} 2. c4 {[%clk 0:02:57]}  e6 {[%clk 0:02:56]} 3. Nc3 {[%clk 0:02:55]}  d5 {[%clk 0:02:55]} 4. Nf3 {[%clk 0:02:54]}  Bb4 {[%clk 0:02:52]} 5. Qa4+ {[%clk 0:02:53]}  Nc6 {[%clk 0:02:52]} 6. cxd5 {[%clk 0:02:50]}  Nxd5 {[%clk 0:02:48]} 7. Bd2 {[%clk 0:02:40]}  O-O {[%clk 0:02:45]} 8. e3 {[%clk 0:02:38]}  Nb6 {[%clk 0:02:23]} 9. Qc2 {[%clk 0:02:37]}  Be7 {[%clk 0:02:19]} 10. a3 {[%clk 0:02:33]}  Nd5 {[%clk 0:01:52]} 11. Bd3 {[%clk 0:02:33]}  h6 {[%clk 0:01:50]} 12. O-O {[%clk 0:02:31]}  Nxc3 {[%clk 0:01:46]} 13. Bxc3 {[%clk 0:02:30]}  Bd6 {[%clk 0:01:43]} 14. e4 {[%clk 0:02:28]}  Re8 {[%clk 0:01:28]} 15. e5 {[%clk 0:02:24]}  Bf8 {[%clk 0:01:28]} 16. Qe2 {[%clk 0:02:24]}  Ne7 {[%clk 0:01:13]} 17. Qe4 {[%clk 0:02:21]}  g6 {[%clk 0:01:13]} 18. h4 {[%clk 0:02:16]}  h5 {[%clk 0:00:30]} 19. Ng5 {[%clk 0:02:01]}  Nf5 {[%clk 0:00:30]} 20. Qf3 {[%clk 0:01:59]}  Be7 {[%clk 0:00:26]} 21. Qf4 {[%clk 0:01:44]}  Rf8 {[%clk 0:00:26]} 22. Rad1 {[%clk 0:01:39]}  Nxh4 {[%clk 0:00:26]} 23. Ne4 {[%clk 0:01:26]}  Nf5 {[%clk 0:00:25]} 24. Nf6+ {[%clk 0:01:13]}  Kg7 {[%clk 0:00:14]} 25. d5 {[%clk 0:01:12]}  Bxf6 {[%clk 0:00:10]} 26. exf6+ {[%clk 0:01:11]}  Kh7 {[%clk 0:00:11]} 27. dxe6 {[%clk 0:01:08]}  Bxe6 {[%clk 0:00:08]} 28. Bxf5 {[%clk 0:01:08]}  Qc8 {[%clk 0:00:07]} 29. Bd2 {[%clk 0:01:06]} 1-0


[Site "https://www.chess.com"]

[Event "Titled Tuesday Blitz February 15 Late 2022"]
[White "Jobava, Baadur"]
[Black "Svane, Frederik"]
[WhiteFideId "13601520"]
[BlackFideId "12923044"]
[WhiteElo "2617"]
[BlackElo "2459"]
[Result "0-1"]
[Round "04"]
[TimeControl "180+1"]
[Date "2022.02.15"]
[WhiteClock "0:00:01"]
[BlackClock "0:00:35"]

1. d4 {[%clk 0:03:00]}  Nf6 {[%clk 0:03:00]} 2. Nc3 {[%clk 0:03:01]}  d5 {[%clk 0:02:59]} 3. Bf4 {[%clk 0:03:01]}  g6 {[%clk 0:03:00]} 4. Qd2 {[%clk 0:03:01]}  Bg7 {[%clk 0:02:59]} 5. Bh6 {[%clk 0:03:02]}  O-O {[%clk 0:02:58]} 6. Bxg7 {[%clk 0:03:02]}  Kxg7 {[%clk 0:02:58]} 7. e3 {[%clk 0:03:03]}  c5 {[%clk 0:02:57]} 8. dxc5 {[%clk 0:03:03]}  Qa5 {[%clk 0:02:54]} 9. Nf3 {[%clk 0:02:52]}  Qxc5 {[%clk 0:02:50]} 10. Rd1 {[%clk 0:02:52]}  Nc6 {[%clk 0:02:45]} 11. Be2 {[%clk 0:02:21]}  Rd8 {[%clk 0:02:39]} 12. O-O {[%clk 0:02:21]}  Ne4 {[%clk 0:02:31]} 13. Qe1 {[%clk 0:01:49]}  Nxc3 {[%clk 0:02:28]} 14. Qxc3+ {[%clk 0:01:49]}  Qxc3 {[%clk 0:02:28]} 15. bxc3 {[%clk 0:01:50]}  Bf5 {[%clk 0:02:24]} 16. Bd3 {[%clk 0:01:44]}  Bg4 {[%clk 0:02:13]} 17. Rb1 {[%clk 0:01:41]}  Bxf3 {[%clk 0:01:54]} 18. gxf3 {[%clk 0:01:42]}  b6 {[%clk 0:01:54]} 19. Ba6 {[%clk 0:01:27]}  Na5 {[%clk 0:01:52]} 20. Rfd1 {[%clk 0:01:27]}  Rd6 {[%clk 0:01:48]} 21. Kf1 {[%clk 0:01:25]}  Rad8 {[%clk 0:01:45]} 22. Ke2 {[%clk 0:01:23]}  R8d7 {[%clk 0:01:40]} 23. Rd3 {[%clk 0:01:19]}  Rc7 {[%clk 0:01:32]} 24. Rb5 {[%clk 0:01:15]}  Rc5 {[%clk 0:01:28]} 25. a4 {[%clk 0:01:06]}  Kh6 {[%clk 0:01:19]} 26. Rb4 {[%clk 0:01:01]}  Rdc6 {[%clk 0:01:10]} 27. Kd2 {[%clk 0:00:52]}  Rc7 {[%clk 0:01:07]} 28. Rh4+ {[%clk 0:00:42]}  Kg7 {[%clk 0:01:07]} 29. e4 {[%clk 0:00:28]}  Nc4+ {[%clk 0:00:48]} 30. Bxc4 {[%clk 0:00:27]}  Rxc4 {[%clk 0:00:48]} 31. Rxd5 {[%clk 0:00:27]}  Rxc3 {[%clk 0:00:49]} 32. Ke2 {[%clk 0:00:18]}  Rxc2+ {[%clk 0:00:48]} 33. Kf1 {[%clk 0:00:18]}  Ra2 {[%clk 0:00:48]} 34. Kg2 {[%clk 0:00:16]}  Rxa4 {[%clk 0:00:47]} 35. Rf4 {[%clk 0:00:13]}  Rac4 {[%clk 0:00:45]} 36. h4 {[%clk 0:00:11]}  h5 {[%clk 0:00:43]} 37. Kg3 {[%clk 0:00:10]}  Rb7 {[%clk 0:00:42]} 38. e5 {[%clk 0:00:08]}  Rxf4 {[%clk 0:00:43]} 39. Kxf4 {[%clk 0:00:09]}  e6 {[%clk 0:00:40]} 40. Rd6 {[%clk 0:00:07]}  b5 {[%clk 0:00:40]} 41. Ke3 {[%clk 0:00:08]}  b4 {[%clk 0:00:41]} 42. Kd2 {[%clk 0:00:09]}  b3 {[%clk 0:00:41]} 43. Kc1 {[%clk 0:00:09]}  b2+ {[%clk 0:00:42]} 44. Kb1 {[%clk 0:00:09]}  Rb3 {[%clk 0:00:42]} 45. f4 {[%clk 0:00:09]}  Rb4 {[%clk 0:00:41]} 46. f5 {[%clk 0:00:06]}  gxf5 {[%clk 0:00:41]} 47. f3 {[%clk 0:00:04]}  a5 {[%clk 0:00:39]} 48. Rd2 {[%clk 0:00:04]}  f4 {[%clk 0:00:36]} 49. Rd7 {[%clk 0:00:01]}  a4 {[%clk 0:00:35]} 50. Ra7 {[%clk 0:00:01]}  Kg6 {[%clk 0:00:35]} 0-1


[Site "https://www.chess.com"]

[Event "Titled Tuesday Blitz February 15 Late 2022"]
[White "Kaasen, Tor Fredrik"]
[Black "Al-Tarboush, Ward"]
[WhiteFideId "1516647"]
[BlackFideId "7601450"]
[WhiteElo "2730"]
[BlackElo "2565"]
[Result "0-1"]
[Round "04"]
[TimeControl "180+1"]
[Date "2022.02.16"]
[WhiteClock "0:00:02"]
[BlackClock "0:00:01"]

1. e4 {[%clk 0:03:00]}  e6 {[%clk 0:02:56]} 2. d4 {[%clk 0:03:00]}  d5 {[%clk 0:02:56]} 3. Nc3 {[%clk 0:03:00]}  Nf6 {[%clk 0:02:56]} 4. e5 {[%clk 0:03:00]}  Nfd7 {[%clk 0:02:56]} 5. f4 {[%clk 0:03:01]}  c5 {[%clk 0:02:57]} 6. Nf3 {[%clk 0:03:01]}  Nc6 {[%clk 0:02:57]} 7. Be3 {[%clk 0:03:02]}  a6 {[%clk 0:02:58]} 8. a3 {[%clk 0:03:02]}  b5 {[%clk 0:02:58]} 9. Bd3 {[%clk 0:03:01]}  Qb6 {[%clk 0:02:56]} 10. O-O {[%clk 0:02:58]}  cxd4 {[%clk 0:02:55]} 11. Bf2 {[%clk 0:02:59]}  Bc5 {[%clk 0:02:53]} 12. Ne2 {[%clk 0:02:41]}  b4 {[%clk 0:02:50]} 13. axb4 {[%clk 0:02:39]}  Qxb4 {[%clk 0:02:51]} 14. Kh1 {[%clk 0:02:17]}  a5 {[%clk 0:02:48]} 15. b3 {[%clk 0:01:57]}  Qb6 {[%clk 0:02:29]} 16. Ra4 {[%clk 0:01:55]}  Nb4 {[%clk 0:02:30]} 17. Nexd4 {[%clk 0:01:43]}  Nxd3 {[%clk 0:02:29]} 18. cxd3 {[%clk 0:01:43]}  g6 {[%clk 0:02:29]} 19. b4 {[%clk 0:01:37]}  Bxb4 {[%clk 0:02:21]} 20. Nf5 {[%clk 0:01:29]}  Qc7 {[%clk 0:02:09]} 21. Rxb4 {[%clk 0:01:23]}  gxf5 {[%clk 0:01:20]} 22. Rb1 {[%clk 0:01:24]}  Ba6 {[%clk 0:01:18]} 23. Ng5 {[%clk 0:01:24]}  Nf8 {[%clk 0:01:12]} 24. Qh5 {[%clk 0:01:17]}  h6 {[%clk 0:01:04]} 25. Rfc1 {[%clk 0:01:17]}  Qd7 {[%clk 0:01:05]} 26. Bb6 {[%clk 0:00:56]}  Ng6 {[%clk 0:00:59]} 27. Nf3 {[%clk 0:00:33]}  Bxd3 {[%clk 0:00:57]} 28. Rc7 {[%clk 0:00:31]}  Bxb1 {[%clk 0:00:36]} 29. Rxd7 {[%clk 0:00:30]}  Kxd7 {[%clk 0:00:37]} 30. Nd2 {[%clk 0:00:19]}  Be4 {[%clk 0:00:34]} 31. Qe2 {[%clk 0:00:17]}  Rhc8 {[%clk 0:00:30]} 32. Qb5+ {[%clk 0:00:17]}  Rc6 {[%clk 0:00:31]} 33. Nb3 {[%clk 0:00:18]}  Rc8 {[%clk 0:00:22]} 34. Nxa5 {[%clk 0:00:17]}  Nxf4 {[%clk 0:00:20]} 35. Nxc6 {[%clk 0:00:18]}  Rxc6 {[%clk 0:00:21]} 36. Qa4 {[%clk 0:00:08]}  d4 {[%clk 0:00:13]} 37. Qxd4+ {[%clk 0:00:08]}  Nd5 {[%clk 0:00:06]} 38. Bc5 {[%clk 0:00:07]}  Ra6 {[%clk 0:00:06]} 39. h3 {[%clk 0:00:05]}  Ra2 {[%clk 0:00:06]} 40. Qc4 {[%clk 0:00:03]}  Rb2 {[%clk 0:00:04]} 41. Qa4+ {[%clk 0:00:02]}  Kd8 {[%clk 0:00:02]} 42. Bd6 {[%clk 0:00:02]}  Rb1+ {[%clk 0:00:02]} 43. Kh2 {[%clk 0:00:02]}  Ne3 {[%clk 0:00:02]} 44. Qa8+ {[%clk 0:00:02]}  Bxa8 {[%clk 0:00:01]} 0-1


[Site "https://www.chess.com"]

[Event "Titled Tuesday Blitz February 15 Late 2022"]
[White "Kalajzic, Ivan"]
[Black "Suder, Jakub"]
[WhiteFideId "14506378"]
[BlackFideId "1195310"]
[WhiteElo "2163"]
[BlackElo "2058"]
[Result "0-1"]
[Round "04"]
[TimeControl "180+1"]
[Date "2022.02.16"]
[WhiteClock "0:00:18"]
[BlackClock "0:01:10"]

1. b3 {[%clk 0:03:00]}  e5 {[%clk 0:02:59]} 2. Bb2 {[%clk 0:03:00]}  d6 {[%clk 0:02:59]} 3. e3 {[%clk 0:03:01]}  Nd7 {[%clk 0:02:59]} 4. d4 {[%clk 0:03:01]}  Ngf6 {[%clk 0:02:59]} 5. Nf3 {[%clk 0:03:00]}  Qe7 {[%clk 0:02:59]} 6. c4 {[%clk 0:02:57]}  g6 {[%clk 0:02:58]} 7. Nc3 {[%clk 0:02:57]}  Bg7 {[%clk 0:02:58]} 8. dxe5 {[%clk 0:02:57]}  Nxe5 {[%clk 0:02:53]} 9. Nxe5 {[%clk 0:02:53]}  dxe5 {[%clk 0:02:54]} 10. Be2 {[%clk 0:02:48]}  O-O {[%clk 0:02:54]} 11. O-O {[%clk 0:02:48]}  c6 {[%clk 0:02:54]} 12. Qc2 {[%clk 0:02:47]}  Bf5 {[%clk 0:02:54]} 13. e4 {[%clk 0:02:46]}  Be6 {[%clk 0:02:51]} 14. Rfd1 {[%clk 0:02:45]}  Rfd8 {[%clk 0:02:50]} 15. Rxd8+ {[%clk 0:02:45]}  Rxd8 {[%clk 0:02:50]} 16. Rd1 {[%clk 0:02:46]}  Ne8 {[%clk 0:02:45]} 17. Rxd8 {[%clk 0:02:44]}  Qxd8 {[%clk 0:02:46]} 18. Qd1 {[%clk 0:02:43]}  Qe7 {[%clk 0:02:40]} 19. Nb1 {[%clk 0:02:38]}  Bc8 {[%clk 0:02:34]} 20. Ba3 {[%clk 0:02:38]}  Qc7 {[%clk 0:02:34]} 21. Bg4 {[%clk 0:02:30]}  Bf8 {[%clk 0:02:32]} 22. Bxc8 {[%clk 0:02:26]}  Qxc8 {[%clk 0:02:33]} 23. Bxf8 {[%clk 0:02:23]}  Kxf8 {[%clk 0:02:34]} 24. c5 {[%clk 0:02:17]}  Ke7 {[%clk 0:02:30]} 25. b4 {[%clk 0:02:13]}  Ng7 {[%clk 0:02:28]} 26. Qd6+ {[%clk 0:02:10]}  Ke8 {[%clk 0:02:26]} 27. Nd2 {[%clk 0:02:09]}  Ne6 {[%clk 0:02:16]} 28. Qxe5 {[%clk 0:02:06]}  Qd7 {[%clk 0:02:17]} 29. Qd6 {[%clk 0:02:04]}  Qxd6 {[%clk 0:01:55]} 30. cxd6 {[%clk 0:02:05]}  Kd7 {[%clk 0:01:55]} 31. e5 {[%clk 0:02:04]}  f6 {[%clk 0:01:54]} 32. exf6 {[%clk 0:01:49]}  Kxd6 {[%clk 0:01:54]} 33. Nc4+ {[%clk 0:01:39]}  Kd5 {[%clk 0:01:50]} 34. Na5 {[%clk 0:01:38]}  b6 {[%clk 0:01:50]} 35. Nb7 {[%clk 0:01:35]}  Nf8 {[%clk 0:01:31]} 36. f7 {[%clk 0:01:23]}  Ke6 {[%clk 0:01:23]} 37. Nd8+ {[%clk 0:01:22]}  Kd7 {[%clk 0:01:23]} 38. Nb7 {[%clk 0:01:05]}  Kc7 {[%clk 0:01:18]} 39. Nc5 {[%clk 0:00:27]}  bxc5 {[%clk 0:01:18]} 40. bxc5 {[%clk 0:00:27]}  Kd7 {[%clk 0:01:18]} 41. Kf1 {[%clk 0:00:25]}  Ke6 {[%clk 0:01:15]} 42. Ke2 {[%clk 0:00:26]}  Kd5 {[%clk 0:01:14]} 43. Kd3 {[%clk 0:00:27]}  Kxc5 {[%clk 0:01:15]} 44. Ke4 {[%clk 0:00:27]}  Kd6 {[%clk 0:01:15]} 45. f4 {[%clk 0:00:27]}  Ke7 {[%clk 0:01:13]} 46. Kd4 {[%clk 0:00:27]}  Nd7 {[%clk 0:01:13]} 47. g4 {[%clk 0:00:25]}  Kxf7 {[%clk 0:01:13]} 48. h4 {[%clk 0:00:24]}  Ke6 {[%clk 0:01:13]} 49. a4 {[%clk 0:00:22]}  Kd6 {[%clk 0:01:14]} 50. a5 {[%clk 0:00:21]}  a6 {[%clk 0:01:14]} 51. Ke4 {[%clk 0:00:20]}  c5 {[%clk 0:01:14]} 52. f5 {[%clk 0:00:20]}  Nf6+ {[%clk 0:01:12]} 53. Kf4 {[%clk 0:00:19]}  Nd5+ {[%clk 0:01:12]} 54. Kg5 {[%clk 0:00:19]}  gxf5 {[%clk 0:01:11]} 55. Kxf5 {[%clk 0:00:17]}  c4 {[%clk 0:01:11]} 56. g5 {[%clk 0:00:18]}  c3 {[%clk 0:01:11]} 57. h5 {[%clk 0:00:19]}  c2 {[%clk 0:01:12]} 58. g6 {[%clk 0:00:20]}  hxg6+ {[%clk 0:01:12]} 59. hxg6 {[%clk 0:00:20]}  c1=Q {[%clk 0:01:12]} 60. g7 {[%clk 0:00:19]}  Qf4+ {[%clk 0:01:12]} 61. Kg6 {[%clk 0:00:19]}  Qg4+ {[%clk 0:01:10]} 62. Kh7 {[%clk 0:00:19]}  Nf6+ {[%clk 0:01:10]} 63. Kh8 {[%clk 0:00:18]}  Qh5# {[%clk 0:01:10]} 0-1


[Site "https://www.chess.com"]

[Event "Titled Tuesday Blitz February 15 Late 2022"]
[White "Kavyev, Ruslan"]
[Black "Krstulovic, Alex"]
[WhiteFideId "34110981"]
[BlackFideId "760056"]
[WhiteElo "2753"]
[BlackElo "2569"]
[Result "1-0"]
[Round "04"]
[TimeControl "180+1"]
[Date "2022.02.16"]
[WhiteClock "0:01:21"]
[BlackClock "0:00:05"]

1. d4 {[%clk 0:03:00]}  Nf6 {[%clk 0:02:59]} 2. c4 {[%clk 0:02:58]}  e6 {[%clk 0:02:59]} 3. g3 {[%clk 0:02:58]}  d5 {[%clk 0:02:59]} 4. Nf3 {[%clk 0:02:59]}  dxc4 {[%clk 0:02:59]} 5. Bg2 {[%clk 0:02:59]}  c6 {[%clk 0:02:59]} 6. O-O {[%clk 0:02:58]}  b5 {[%clk 0:02:59]} 7. Ne5 {[%clk 0:02:58]}  Bb7 {[%clk 0:02:59]} 8. b3 {[%clk 0:02:58]}  cxb3 {[%clk 0:02:58]} 9. axb3 {[%clk 0:02:59]}  Be7 {[%clk 0:02:47]} 10. Nc3 {[%clk 0:02:59]}  Qc8 {[%clk 0:02:34]} 11. Qc2 {[%clk 0:02:56]}  a6 {[%clk 0:02:30]} 12. Bg5 {[%clk 0:02:54]}  Nbd7 {[%clk 0:02:29]} 13. Nxd7 {[%clk 0:02:53]}  Qxd7 {[%clk 0:02:26]} 14. Bxf6 {[%clk 0:02:43]}  Bxf6 {[%clk 0:02:27]} 15. Ne4 {[%clk 0:02:43]}  Be7 {[%clk 0:02:17]} 16. Nc5 {[%clk 0:02:42]}  Bxc5 {[%clk 0:02:16]} 17. Qxc5 {[%clk 0:02:43]}  f6 {[%clk 0:02:10]} 18. Rfc1 {[%clk 0:02:38]}  Rc8 {[%clk 0:02:09]} 19. e3 {[%clk 0:02:07]}  Kf7 {[%clk 0:02:08]} 20. Qb6 {[%clk 0:02:05]}  Rhd8 {[%clk 0:02:04]} 21. Rc5 {[%clk 0:02:04]}  Qc7 {[%clk 0:02:02]} 22. Qxc7+ {[%clk 0:01:58]}  Rxc7 {[%clk 0:02:03]} 23. b4 {[%clk 0:01:58]}  Ra8 {[%clk 0:01:41]} 24. Ra5 {[%clk 0:01:53]}  Ke7 {[%clk 0:01:40]} 25. f4 {[%clk 0:01:51]}  Rg8 {[%clk 0:01:30]} 26. h4 {[%clk 0:01:51]}  h6 {[%clk 0:01:25]} 27. h5 {[%clk 0:01:50]}  Kd6 {[%clk 0:01:14]} 28. Ra1 {[%clk 0:01:49]}  Ra8 {[%clk 0:01:14]} 29. Ra5 {[%clk 0:01:49]}  Re8 {[%clk 0:01:13]} 30. Ra1 {[%clk 0:01:47]}  Rec8 {[%clk 0:01:05]} 31. Kf2 {[%clk 0:01:45]}  Re8 {[%clk 0:01:04]} 32. Be4 {[%clk 0:01:43]}  Ra8 {[%clk 0:00:49]} 33. Kf3 {[%clk 0:01:43]}  Re8 {[%clk 0:00:44]} 34. g4 {[%clk 0:01:43]}  Rec8 {[%clk 0:00:43]} 35. g5 {[%clk 0:01:42]}  Ke7 {[%clk 0:00:43]} 36. gxh6 {[%clk 0:01:36]}  gxh6 {[%clk 0:00:43]} 37. Rg1 {[%clk 0:01:37]}  Rh8 {[%clk 0:00:40]} 38. Rg7+ {[%clk 0:01:35]}  Kd6 {[%clk 0:00:40]} 39. Rg6 {[%clk 0:01:33]}  Rf7 {[%clk 0:00:39]} 40. f5 {[%clk 0:01:29]}  Re8 {[%clk 0:00:27]} 41. Rxh6 {[%clk 0:01:28]}  Rg8 {[%clk 0:00:21]} 42. Rg6 {[%clk 0:01:27]}  Rfg7 {[%clk 0:00:19]} 43. h6 {[%clk 0:01:24]}  Rxg6 {[%clk 0:00:13]} 44. fxg6 {[%clk 0:01:24]}  f5 {[%clk 0:00:13]} 45. g7 {[%clk 0:01:21]}  fxe4+ {[%clk 0:00:07]} 46. Kxe4 {[%clk 0:01:21]}  e5 {[%clk 0:00:05]} 47. h7 {[%clk 0:01:21]} 1-0


[Site "https://www.chess.com"]

[Event "Titled Tuesday Blitz February 15 Late 2022"]
[White "Klukin, Kirill"]
[Black "Sviridov, Valery"]
[WhiteFideId "24199273"]
[BlackFideId "4120680"]
[WhiteElo "2324"]
[BlackElo "2454"]
[Result "1-0"]
[Round "04"]
[TimeControl "180+1"]
[Date "2022.02.15"]
[WhiteClock "0:00:08"]
[BlackClock "0:00:03"]

1. d4 {[%clk 0:03:00]}  g6 {[%clk 0:02:56]} 2. Nf3 {[%clk 0:02:59]}  Bg7 {[%clk 0:02:57]} 3. e3 {[%clk 0:02:58]}  d6 {[%clk 0:02:57]} 4. Be2 {[%clk 0:02:58]}  Nf6 {[%clk 0:02:58]} 5. O-O {[%clk 0:02:58]}  O-O {[%clk 0:02:58]} 6. c4 {[%clk 0:02:58]}  Nbd7 {[%clk 0:02:58]} 7. Nc3 {[%clk 0:02:58]}  e5 {[%clk 0:02:59]} 8. Qc2 {[%clk 0:02:59]}  Re8 {[%clk 0:02:59]} 9. b4 {[%clk 0:02:58]}  exd4 {[%clk 0:02:53]} 10. Nxd4 {[%clk 0:02:54]}  a5 {[%clk 0:02:53]} 11. b5 {[%clk 0:02:54]}  Nc5 {[%clk 0:02:51]} 12. Bb2 {[%clk 0:02:55]}  Qe7 {[%clk 0:02:40]} 13. Bf3 {[%clk 0:02:53]}  h5 {[%clk 0:02:40]} 14. h3 {[%clk 0:02:52]}  Bd7 {[%clk 0:02:40]} 15. Rad1 {[%clk 0:02:50]}  Rab8 {[%clk 0:02:24]} 16. Nde2 {[%clk 0:02:34]}  Be6 {[%clk 0:02:07]} 17. Nb1 {[%clk 0:01:49]}  Bf5 {[%clk 0:02:06]} 18. Qd2 {[%clk 0:01:44]}  b6 {[%clk 0:01:23]} 19. Bxf6 {[%clk 0:01:36]}  Bxf6 {[%clk 0:01:24]} 20. Nbc3 {[%clk 0:01:36]}  Bd3 {[%clk 0:01:15]} 21. Nd5 {[%clk 0:01:33]}  Qd8 {[%clk 0:01:15]} 22. Rc1 {[%clk 0:01:27]}  Bg7 {[%clk 0:01:09]} 23. Rfd1 {[%clk 0:01:25]}  Bxe2 {[%clk 0:01:05]} 24. Qxe2 {[%clk 0:01:24]}  Rc8 {[%clk 0:01:01]} 25. Qc2 {[%clk 0:01:22]}  Qg5 {[%clk 0:00:59]} 26. Nf4 {[%clk 0:01:19]}  Be5 {[%clk 0:00:56]} 27. Bc6 {[%clk 0:01:18]}  Rf8 {[%clk 0:00:55]} 28. Nd5 {[%clk 0:01:18]}  Qd8 {[%clk 0:00:51]} 29. f4 {[%clk 0:00:59]}  Bg7 {[%clk 0:00:51]} 30. Rf1 {[%clk 0:00:58]}  f5 {[%clk 0:00:49]} 31. g4 {[%clk 0:00:44]}  Qh4 {[%clk 0:00:48]} 32. Qg2 {[%clk 0:00:43]}  Kh7 {[%clk 0:00:46]} 33. g5 {[%clk 0:00:35]}  Ne4 {[%clk 0:00:43]} 34. Ne7 {[%clk 0:00:33]}  Rce8 {[%clk 0:00:40]} 35. Bxe8 {[%clk 0:00:30]}  Rxe8 {[%clk 0:00:41]} 36. Nd5 {[%clk 0:00:31]}  Nc5 {[%clk 0:00:20]} 37. Rfd1 {[%clk 0:00:29]}  Re4 {[%clk 0:00:18]} 38. Qf3 {[%clk 0:00:29]}  Ne6 {[%clk 0:00:18]} 39. Kg2 {[%clk 0:00:27]}  Kg8 {[%clk 0:00:16]} 40. Qg3 {[%clk 0:00:25]}  Qxg3+ {[%clk 0:00:16]} 41. Kxg3 {[%clk 0:00:26]}  Kf7 {[%clk 0:00:17]} 42. Kf3 {[%clk 0:00:26]}  Bf8 {[%clk 0:00:15]} 43. Nf6 {[%clk 0:00:25]}  Nc5 {[%clk 0:00:15]} 44. Nxe4 {[%clk 0:00:25]}  fxe4+ {[%clk 0:00:15]} 45. Ke2 {[%clk 0:00:24]}  Ke6 {[%clk 0:00:15]} 46. Rd5 {[%clk 0:00:24]}  Na4 {[%clk 0:00:13]} 47. Rd4 {[%clk 0:00:22]}  Nc5 {[%clk 0:00:13]} 48. Rcd1 {[%clk 0:00:21]}  Bg7 {[%clk 0:00:13]} 49. Rd5 {[%clk 0:00:20]}  Na4 {[%clk 0:00:13]} 50. Kf2 {[%clk 0:00:20]}  Nc3 {[%clk 0:00:12]} 51. R1d4 {[%clk 0:00:20]}  Bxd4 {[%clk 0:00:11]} 52. Rxd4 {[%clk 0:00:21]}  Kf5 {[%clk 0:00:11]} 53. a3 {[%clk 0:00:19]}  Nb1 {[%clk 0:00:11]} 54. Rd5+ {[%clk 0:00:18]}  Ke6 {[%clk 0:00:10]} 55. Rd4 {[%clk 0:00:17]}  Kf5 {[%clk 0:00:10]} 56. Rd5+ {[%clk 0:00:15]}  Ke6 {[%clk 0:00:10]} 57. Rd1 {[%clk 0:00:15]}  Nxa3 {[%clk 0:00:10]} 58. Rc1 {[%clk 0:00:16]}  d5 {[%clk 0:00:06]} 59. cxd5+ {[%clk 0:00:13]}  Kd7 {[%clk 0:00:05]} 60. f5 {[%clk 0:00:12]}  Nxb5 {[%clk 0:00:03]} 61. fxg6 {[%clk 0:00:12]}  Ke7 {[%clk 0:00:03]} 62. Rc4 {[%clk 0:00:09]}  Nd6 {[%clk 0:00:02]} 63. Rxc7+ {[%clk 0:00:09]}  Kf8 {[%clk 0:00:03]} 64. Rc6 {[%clk 0:00:08]} 1-0


[Site "https://www.chess.com"]